fUSD/lending_fUSD_20240613
["ID","MTS","AMOUNT","RATE_DAILY","PERIOD"]
[329327011,1718247042069,-1613.0,0.00023552,2]
[329327012,1718247042081,-352.14,0.000236,2]
[329327014,1718247042096,-198.30447668,0.00023842,2]
[329327017,1718247042118,-2829.34771968,0.00024,10]
[329327019,1718247042134,-255.04,0.00024001,2]
[329327021,1718247042153,-150.34555235,0.00024016,2]
[329327023,1718247042184,-154.91680917,0.00024041,2]
[329327026,1718247042212,-156.29937569,0.00024151,2]
[329327028,1718247042224,-397.92,0.00024197,2]
[329327029,1718247042237,-180.0,0.0002423,2]
[329327031,1718247042255,-156.27003942,0.00024231,2]
[329327033,1718247042277,-156.66226484,0.00024292,2]
[329327035,1718247042290,-163.21747743,0.0002435,2]
[329327037,1718247042302,-164.34,0.00024384,2]
[329327039,1718247042319,-156.29937569,0.00024435,2]
[329327041,1718247042345,-2937.04243626,0.00024445,2]
[329327043,1718247042372,-157.05266948,0.00024539,2]
[329327045,1718247042386,-150.34555235,0.00024553,2]
[329327047,1718247042398,-166.62458164,0.00024555,2]
[329327049,1718247042411,-150.34555235,0.00024636,2]
[329327051,1718247042424,-156.66226484,0.00024808,2]
[329327053,1718247042446,-155.57711884,0.00024808,2]
[329327055,1718247042458,-156.29937569,0.00024859,2]
[329327057,1718247042476,-153.70031772,0.00024975,2]
[329327058,1718247042519,-800.0,0.00024986,2]
[329327059,1718247042533,-1036.00519098,0.00024998,2]
[329327061,1718247042551,-196.47921479,0.00024998,2]
[329327063,1718247042589,-500.0,0.00024998,2]
[329327065,1718247042602,-11230.83265979,0.00024998,2]
[329327068,1718247042612,-805.56890898,0.00025,2]
[329327070,1718247042623,-833.60038454,0.00025,2]
[329327072,1718247042637,-931.14158888,0.00025,2]
[329327074,1718247042649,-1277.92734148,0.00025,2]
[329327076,1718247042661,-326.38200108,0.00025,2]
[329327078,1718247042672,-225.37465606,0.00025,2]
[329327081,1718247042702,-158.4,0.00025,2]
[329327083,1718247042717,-153.70031772,0.00025029,2]
[329327086,1718247042747,-150.34555235,0.00025032,2]
[329327088,1718247042758,-153.70031772,0.00025062,2]
[329327090,1718247042777,-156.29937569,0.00025134,2]
[329327092,1718247042790,-231.99,0.00025135,2]
[329327094,1718247042816,-1000.0,0.00025205,2]
[329327096,1718247042845,-150.34555235,0.0002529,2]
[329327098,1718247042865,-155.57711884,0.00025316,2]
[329327100,1718247042888,-156.66226484,0.0002532,2]
[329327102,1718247042901,-376.9,0.00025357,2]
[329327104,1718247042913,-166.7402553,0.00025392,2]
[329327106,1718247042928,-156.29937569,0.00025398,2]
[329327108,1718247042947,-155.57711884,0.00025456,2]
[329327110,1718247042963,-156.66226484,0.00025557,2]
[329327112,1718247042977,-154.91680917,0.00025576,2]
[329327128,1718247043000,-158.46465584,0.00025682,2]
[329327130,1718247043163,-792.0,0.00025777,2]
[329327132,1718247043186,-150.34555235,0.00025801,2]
[329327134,1718247043200,-2937.04243626,0.00025809,2]
[329327136,1718247043212,-198.30447668,0.00025861,2]
[329327138,1718247043229,-177.62,0.0002589,2]
[329327140,1718247043248,-155.87156708,0.00025948,2]
[329327142,1718247043261,-156.66226484,0.00025977,2]
[329327144,1718247043288,-157.05266948,0.00025993,2]
[329327146,1718247043301,-155.9673023,0.00025996,2]
[329327148,1718247043325,-157.05266948,0.00025998,2]
[329327150,1718247043344,-3000.0,0.00026,2]
[329327152,1718247043356,-156.29937569,0.00026093,2]
[329327155,1718247043371,-156.66226484,0.00026163,2]
[329327157,1718247043387,-500.0,0.00026199,2]
[329327159,1718247043401,-500.0,0.00026199,2]
[329327160,1718247043420,-500.0,0.00026199,2]
[329327163,1718247043447,-500.0,0.00026199,2]
[329327165,1718247043460,-500.0,0.00026199,2]
[329327167,1718247043509,-502.93782818,0.00026199,2]
[329327170,1718247043545,-518.0,0.000262,2]
[329327172,1718247043559,-156.29937569,0.00026315,2]
[329327173,1718247043571,-157.05266948,0.00026411,2]
[329327175,1718247043586,-397.92,0.00026461,2]
[329327177,1718247043601,-163.21747743,0.00026575,2]
[329327179,1718247043613,-155.87156708,0.00026691,2]
[329327181,1718247043631,-156.29937569,0.00026728,2]
[329327183,1718247043644,-156.29937569,0.00026742,2]
[329327184,1718247043660,-800.0,0.00026767,2]
[329327186,1718247043679,-156.66226484,0.00026811,2]
[329327189,1718247043704,-200.0,0.00026834,2]
[329327192,1718247043733,-1000.0,0.00026834,2]
[329327194,1718247043748,-500.0,0.00026834,2]
[329327197,1718247043770,-200.0,0.00026834,2]
[329327199,1718247043787,-163.21747743,0.00026855,2]
[329327201,1718247043798,-157.05266948,0.00027073,2]
[329327202,1718247043811,-163.21747743,0.00027074,2]
[329327205,1718247043829,-2005.08235378,0.00027113,2]
[329327207,1718247043852,-150.34555235,0.00027137,2]
[329327209,1718247043872,-172.36,0.00027146,2]
[329327211,1718247043892,-163.21747743,0.00027172,2]
[329327214,1718247043908,-2937.04243626,0.00027173,2]
[329327216,1718247043921,-150.34555235,0.00027191,2]
[329327218,1718247043934,-150.34555235,0.00027207,2]
[329327220,1718247043948,-156.66226484,0.00027238,2]
[329327222,1718247043982,-155.57711884,0.00027274,2]
[329327224,1718247044011,-156.29937569,0.00027306,2]
[329327226,1718247044044,-434.549,0.00027348,2]
[329327228,1718247044058,-442.0,0.00027348,2]
[329327229,1718247044084,-1272.59,0.00027348,2]
[329327230,1718247044094,-1634.566,0.00027348,2]
[329327232,1718247044144,-616.0,0.00027348,2]
[329327234,1718247044160,-343.788,0.00027348,2]
[329327236,1718247044173,-201.042,0.00027348,2]
[329327239,1718247044189,-1069.077,0.00027348,2]
[329327241,1718247044204,-36088.12,0.00027348,2]
[329327243,1718247044233,-154.06,0.00027397,2]
[329327245,1718247044263,-177.85,0.00027397,2]
[329327247,1718247044276,-2510.04407024,0.000274,2]
[329327249,1718247044288,-504.77825375,0.000274,2]
[329327251,1718247044302,-158.29,0.000274,2]
[329327254,1718247044317,-156.66226484,0.00027415,2]
[329327256,1718247044330,-163.34767832,0.00027496,2]
[329327258,1718247044345,-237.13455884,0.00027496,2]
[329327260,1718247044355,-150.34555235,0.00027501,2]
[329327262,1718247044366,-155.071978,0.00027515,2]
[329327265,1718247044406,-150.066601,0.00027515,2]
[329327268,1718247044432,-171.10806,0.00027515,2]
[329327270,1718247044451,-162.398927,0.00027515,2]
[329327272,1718247044476,-187.272331,0.00027515,2]
[329327274,1718247044522,-154.515656,0.00027515,2]
[329327277,1718247044534,-150.0666,0.00027515,2]
[329327280,1718247044571,-180.665413,0.00027515,2]
[329327282,1718247044584,-179.879597,0.00027515,2]
[329327284,1718247044597,-156.66226484,0.00027689,2]
[329327286,1718247044612,-171.01904097,0.00027746,2]
[329327288,1718247044625,-166.66666666,0.00027812,2]
[329327290,1718247044637,-155.071978,0.00027858,2]
[329327292,1718247044650,-154.515656,0.00027858,2]
[329327294,1718247044670,-163.21747743,0.00027871,2]
[329327296,1718247044685,-231.99,0.00027874,2]
[329327298,1718247044704,-198.30447668,0.00027881,2]
[329327300,1718247044728,-510.0,0.000279,2]
[329327302,1718247044744,-355.0,0.000279,2]
[329327304,1718247044772,-1000.0,0.000279,2]
[329327307,1718247044791,-224.0,0.000279,2]
[329327309,1718247044822,-156.66226484,0.00027912,2]
[329327312,1718247044850,-180.665413,0.00027973,2]
[329327315,1718247044876,-179.879597,0.00027973,2]
[329327317,1718247044891,-150.34555235,0.00027974,2]
[329327320,1718247044922,-35007.67515838,0.00028,2]
[329327322,1718247044936,-169.27885675,0.00028,2]
[329327324,1718247044950,-1204.94218696,0.00028,2]
[329327326,1718247044969,-306.727459,0.00028,2]
[329327328,1718247044991,-851.39,0.00028082,2]
[329327330,1718247045004,-417.69,0.00028082,2]
[329327332,1718247045016,-790.74,0.00028082,2]
[329327334,1718247045032,-185.46,0.00028082,2]
[329327336,1718247045045,-156.66226484,0.00028115,2]
[329327338,1718247045059,-154.06,0.00028158,2]
[329327340,1718247045074,-376.9,0.00028175,2]
[329327343,1718247045090,-1017.0,0.000282,2]
[329327345,1718247045102,-155.071978,0.00028202,2]
[329327347,1718247045113,-154.515656,0.00028202,2]
[329327349,1718247045125,-600.0,0.00028218,2]
[329327351,1718247045137,-150.000001,0.000283,2]
[329327353,1718247045151,-150.34555235,0.00028345,2]
[329327355,1718247045164,-422.94,0.00028356,2]
[329327357,1718247045176,-526.76,0.00028356,2]
[329327358,1718247045191,-150.0,0.00028356,2]
[329327360,1718247045205,-712.51,0.00028356,2]
[329327363,1718247045225,-150.0,0.00028356,2]
[329327364,1718247045239,-526.76,0.00028356,2]
[329327366,1718247045255,-422.94,0.00028356,2]
[329327368,1718247045268,-150.0,0.00028356,2]
[329327370,1718247045280,-150.0,0.00028356,2]
[329327372,1718247045291,-422.94,0.00028356,2]
[329327375,1718247045322,-150.0,0.00028356,2]
[329327376,1718247045333,-526.76,0.00028356,2]
[329327378,1718247045344,-150.0,0.00028356,2]
[329327380,1718247045354,-526.76,0.00028356,2]
[329327382,1718247045370,-153.70031772,0.00028381,2]
[329327384,1718247045390,-156.29937569,0.00028401,2]
[329327386,1718247045401,-180.665413,0.00028432,2]
[329327388,1718247045413,-179.879597,0.00028432,2]
[329327390,1718247045423,-2301.95948199,0.00028536,2]
[329327400,1718247045607,-435.67082283,0.00028536,2]
[329327402,1718247045622,-199.41213144,0.00028536,2]
[329327404,1718247045634,-89.20321863,0.00028546,2]
[329327406,1718247045673,-65.86875937,0.00028546,2]
[329327410,1718247045693,-154.515656,0.00028546,2]
[329327412,1718247045708,-156.29937569,0.00028549,2]
[329327413,1718247045726,-150.34555235,0.00028595,2]
[329327415,1718247045745,-152.0,0.00028621,3]
[329327417,1718247045764,-156.27003942,0.00028623,2]
[329327419,1718247045780,-3757.9651,0.0002871,2]
[329327421,1718247045798,-397.92,0.00028725,2]
[329327423,1718247045813,-600.0,0.00028766,2]
[329327425,1718247045828,-215.42781806,0.0002879,2]
[329327427,1718247045843,-150.79,0.0002879,2]
[329327429,1718247045855,-150.79,0.0002879,2]
[329327431,1718247045876,-150.79,0.0002879,2]
[329327433,1718247045895,-150.79,0.0002879,2]
[329327435,1718247045921,-150.79,0.0002879,2]
[329327437,1718247045954,-150.79,0.0002879,2]
[329327438,1718247045966,-158.29,0.0002879,2]
[329327440,1718247045978,-158.29,0.0002879,2]
[329327442,1718247045992,-158.29,0.0002879,2]
[329327444,1718247046010,-158.29,0.0002879,2]
[329327445,1718247046026,-158.29,0.0002879,2]
[329327447,1718247046048,-3000.0,0.000288,2]
[329327449,1718247046062,-4192.89232307,0.000288,2]
[329327455,1718247046153,-2421.38085988,0.000288,2]
[329327478,1718247046512,-2381.9081558,0.000288,2]
[329327499,1718247046679,-4371.83669694,0.000288,2]
[329327517,1718247046840,-7138.00000004,0.000288,2]
[329327520,1718247046879,-678663.43085865,0.000288,2]
[329327522,1718247046893,-285859.68543355,0.000288,2]
[329327539,1718247047065,-2990.57280022,0.000288,2]
[329327545,1718247047106,-340.13391,0.000288,2]
[329327574,1718247047317,-89228.254185,0.000288,2]
[329327603,1718247047741,-1652.89364205,0.000288,2]
[329327605,1718247047758,-5971.18899999,0.000288,2]
[329327615,1718247047862,-879.1,0.000288,2]
[329327736,1718248233093,-155.0,0.00017051,2]
[329327737,1718248233112,-621.55058332,0.00017052,2]
[329327738,1718248233124,-83.80523744,0.00017053,2]
[329327739,1718248233142,-71.19476256,0.00017053,2]
[329327740,1718248233154,-222.06921358,0.00017054,2]
[329327741,1718248233168,-316.02144535,0.00017054,2]
[329327742,1718248233212,-334.21761062,0.00017054,2]
[329327743,1718248233357,-191.47801135,0.00017054,2]
[329327744,1718248233369,-418.34548178,0.00017054,2]
[329327745,1718248233389,-11.63297303,0.00017054,2]
[329327746,1718248233401,-2150.47458084,0.00017054,2]
[329327747,1718248233553,-678.583458,0.00017054,2]
[329327748,1718248233568,-688.55899011,0.00017054,2]
[329327749,1718248233585,-5707.72759011,0.00017054,2]
[329327750,1718248233596,-1000.0,0.00017055,2]
[329327751,1718248233609,-155.0,0.00017056,2]
[329327752,1718248233629,-434.2334272,0.00017056,2]
[329327753,1718248233647,-162.73424915,0.00017056,2]
[329327754,1718248233670,-1277.84879842,0.00017057,2]
[329327755,1718248233688,-667.21533428,0.00017058,2]
[329327756,1718248233700,-1491.05933154,0.00017059,2]
[329327757,1718248233716,-1254.00813043,0.00017112,2]
[329327758,1718248233738,-300.0,0.00017159,2]
[329327759,1718248233756,-1736.95,0.00017258,2]
[329327760,1718248233778,-155.0,0.00017258,2]
[329327761,1718248233801,-470.59,0.0001726,2]
[329327762,1718248233825,-499.99,0.0001726,2]
[329327763,1718248233849,-7928.08,0.0001726,2]
[329327764,1718248233870,-299.99,0.0001726,4]
[329327765,1718248233897,-1803.86,0.0001726,2]
[329327766,1718248233932,-150.99,0.00017534,2]
[329327767,1718248233944,-412.10198584,0.00019,2]
[329327768,1718248233955,-187.678251,0.0002,2]
[329327769,1718248233967,-155.0,0.0002,2]
[329327770,1718248233989,-1982.70907049,0.0002,2]
[329327771,1718248234000,-3896.31762119,0.0002,2]
[329327772,1718248234012,-226.76270483,0.000201,2]
[329327773,1718248234022,-512.4463626,0.000219,2]
[329327774,1718248234033,-791.16188927,0.00022,2]
[329327775,1718248234047,-538.32,0.00022177,2]
[329327776,1718248234057,-1206.6789,0.000229,2]
[329327777,1718248234067,-250.0,0.00023326,2]
[329327778,1718248234079,-1347.53,0.00023733,2]
[329327779,1718248234089,-1000.0,0.00023861,2]
[329327780,1718248234299,-155.68,0.00023893,2]
[329327781,1718248234312,-2406.6606068,0.00023941,2]
[329327782,1718248234332,-23890.0,0.00023942,2]
[329327783,1718248234346,-2829.34771968,0.00024,10]
[329327784,1718248234358,-150.24200793,0.00024042,2]
[329327785,1718248234387,-177.37,0.00024104,2]
[329327786,1718248234448,-159.22176026,0.00024106,2]
[329327788,1718248234479,-157.60158641,0.00024108,2]
[329327790,1718248234516,-155.4377933,0.00024108,2]
[329327792,1718248234528,-150.24200793,0.00024143,2]
[329327793,1718248234547,-250.0,0.00024263,2]
[329327795,1718248234559,-800.0,0.00024274,2]
[329327797,1718248234580,-800.0,0.00024274,2]
[329327799,1718248234595,-800.0,0.00024274,2]
[329327802,1718248234610,-518.93,0.0002429,2]
[329327804,1718248234639,-800.0,0.00024356,2]
[329327806,1718248234652,-151.06,0.00024384,2]
[329327807,1718248234663,-285.2,0.00024384,2]
[329327810,1718248234684,-159.22176026,0.00024389,2]
[329327812,1718248234695,-800.0,0.00024411,2]
[329327814,1718248234706,-538.32,0.00024441,2]
[329327816,1718248234728,-171.92504053,0.00024464,2]
[329327818,1718248234746,-159.37556488,0.00024494,2]
[329327820,1718248234757,-253.50116831,0.0002455,2]
[329327822,1718248234769,-155.73293388,0.00024592,2]
[329327824,1718248234781,-150.24200793,0.00024613,2]
[329327826,1718248234793,-157.60158641,0.00024665,2]
[329327828,1718248234804,-171.92504053,0.00024673,2]
[329327830,1718248234815,-157.60158641,0.00024686,2]
[329327832,1718248234829,-150.24200793,0.00024706,2]
[329327833,1718248234840,-171.92504053,0.00024712,2]
[329327835,1718248234862,-171.92504053,0.00024799,2]
[329327838,1718248234879,-157.60158641,0.00024811,2]
[329327840,1718248234894,-171.92504053,0.00024821,2]
[329327841,1718248234907,-211.6946,0.00024851,2]
[329327843,1718248234940,-1276.2131,0.00024851,2]
[329327844,1718248234959,-155.73293388,0.00024871,2]
[329327847,1718248234971,-6802.41760684,0.000249,2]
[329327849,1718248234995,-155.07003012,0.00024904,2]
[329327850,1718248235007,-155.39182598,0.00024905,2]
[329327851,1718248235018,-154.54095258,0.00024921,2]
[329327853,1718248235030,-200.0,0.00024961,2]
[329327855,1718248235042,-292.55,0.00024961,2]
[329327857,1718248235053,-833.60038454,0.00025,2]
[329327859,1718248235064,-155.0,0.00025,2]
[329327861,1718248235076,-14478.34232166,0.00025,2]
[329327863,1718248235094,-326.25589418,0.00025,2]
[329327865,1718248235107,-1277.92734148,0.00025,2]
[329327867,1718248235122,-155.0,0.00025,2]
[329327869,1718248235142,-159.21279056,0.00025,2]
[329327871,1718248235161,-15763.32215502,0.00025,2]
[329327873,1718248235173,-154.98051768,0.00025035,2]
[329327875,1718248235214,-150.24200793,0.00025056,2]
[329327878,1718248235257,-1000.0,0.00025205,2]
[329327879,1718248235270,-150.24200793,0.00025427,2]
[329327882,1718248235297,-171.92504053,0.00025774,2]
[329327884,1718248235328,-163.92698493,0.00025785,2]
[329327887,1718248235357,-180.0,0.00025884,2]
[329327890,1718248235390,-9085.27806329,0.00026052,2]
[329327892,1718248235405,-154.98051768,0.00026135,2]
[329327894,1718248235421,-159.22176026,0.00026149,2]
[329327896,1718248235434,-156.27003943,0.00026234,2]
[329327898,1718248235461,-159.22176026,0.0002632,2]
[329327901,1718248235476,-155.73293388,0.00026398,2]
[329327903,1718248235492,-171.92504053,0.00026516,2]
[329327904,1718248235505,-155.39182598,0.00026617,2]
[329327906,1718248235527,-538.32,0.00026704,2]
[329327908,1718248235546,-1000.0,0.00026843,2]
[329327910,1718248235556,-155.4377933,0.00026878,2]
[329327912,1718248235575,-171.92504053,0.00026925,2]
[329327914,1718248235585,-154.8461679,0.00026966,2]
[329327915,1718248235598,-200.0,0.00027,2]
[329327916,1718248235609,-518.93,0.00027029,2]
[329327917,1718248235626,-2839.0,0.000271,2]
[329327918,1718248235663,-171.92504053,0.00027182,2]
[329327919,1718248235677,-619.73589682,0.000272,2]
[329327920,1718248235688,-200.75,0.00027218,2]
[329327921,1718248235700,-150.24200793,0.00027242,2]
[329327922,1718248235711,-4377.93045286,0.00027248,2]
[329327923,1718248235735,-163.92698493,0.00027258,2]
[329327924,1718248235754,-800.0,0.0002726,2]
[329327925,1718248235768,-1000.0,0.000273,2]
[329327926,1718248235795,-1697.0,0.000273,2]
[329327927,1718248235814,-2500.0,0.000273,2]
[329327928,1718248235826,-978.0,0.00027348,2]
[329327929,1718248235845,-441.0,0.00027348,2]
[329327930,1718248235857,-1830.0,0.00027348,2]
[329327931,1718248235872,-1650.0,0.00027348,2]
[329327932,1718248235893,-1269.0,0.00027348,2]
[329327933,1718248235932,-616.0,0.00027348,2]
[329327934,1718248235943,-2431.97,0.00027348,2]
[329327935,1718248235956,-813.85,0.00027348,2]
[329327936,1718248235971,-447.0,0.00027348,2]
[329327937,1718248235992,-150.484,0.00027348,2]
[329327938,1718248236015,-166.123,0.00027348,2]
[329327939,1718248236031,-1318.978,0.00027348,2]
[329327940,1718248236050,-3176.0,0.00027348,2]
[329327941,1718248236070,-546.0,0.00027348,2]
[329327942,1718248236094,-2000.507,0.00027348,2]
[329327943,1718248236111,-291.451,0.00027348,2]
[329327944,1718248236125,-5155.0,0.00027348,2]
[329327945,1718248236138,-5816.247,0.00027348,2]
[329327946,1718248236150,-1076.958,0.00027348,2]
[329327947,1718248236167,-155.07003012,0.0002739,2]
[329327948,1718248236181,-150.0,0.00027397,2]
[329327949,1718248236192,-177.67,0.00027397,2]
[329327950,1718248236204,-251.14708028,0.000274,2]
[329327951,1718248236221,-602.73281977,0.000274,2]
[329327952,1718248236236,-711.57210191,0.000274,2]
[329327953,1718248236250,-751.20050019,0.000274,2]
[329327954,1718248236266,-501.40609209,0.000274,2]
[329327955,1718248236277,-171.92504053,0.00027417,2]
[329327956,1718248236289,-150.24200793,0.0002749,2]
[329327957,1718248236308,-619.73589675,0.000275,2]
[329327958,1718248236323,-162.462612,0.00027515,2]
[329327959,1718248236345,-563.593583,0.00027515,2]
[329327960,1718248236367,-1788.133048,0.00027515,2]
[329327961,1718248236395,-196.122393,0.00027515,2]
[329327962,1718248236408,-187.258411,0.00027515,2]
[329327963,1718248236422,-649.85045,0.00027515,2]
[329327964,1718248236444,-171.375081,0.00027515,2]
[329327965,1718248236458,-845.390375,0.00027515,2]
[329327966,1718248236492,-4377.93045286,0.00027543,2]
[329327967,1718248236516,-224.0,0.000276,2]
[329327968,1718248236531,-171.92504053,0.00027638,2]
[329327969,1718248236544,-157.60158641,0.00027728,2]
[329327970,1718248236583,-619.73589675,0.000278,2]
[329327971,1718248236594,-4377.93045286,0.00027837,2]
[329327972,1718248236611,-517.0,0.00027854,5]
[329327973,1718248236635,-162.462612,0.00027858,2]
[329327974,1718248236661,-563.593583,0.00027858,2]
[329327975,1718248236673,-1788.133048,0.00027858,2]
[329327976,1718248236690,-649.85045,0.00027858,2]
[329327977,1718248236702,-845.390375,0.00027858,2]
[329327978,1718248236721,-266.69083634,0.000279,2]
[329327979,1718248236735,-1218.0,0.000279,2]
[329327980,1718248236755,-150.24200793,0.00027907,2]
[329327981,1718248236768,-800.0,0.00027918,7]
[329327982,1718248236797,-154.98051768,0.00027924,2]
[329327983,1718248236811,-150.24200793,0.00027947,2]
[329327984,1718248236829,-171.92504053,0.0002798,2]
[329327985,1718248236848,-225.40492416,0.00028,2]
[329327986,1718248236864,-150.24200793,0.00028005,2]
[329327987,1718248236882,-155.69556767,0.00028068,2]
[329327988,1718248236946,-150.24200793,0.00028086,2]
[329327990,1718248236959,-171.92504053,0.00028097,2]
[329327992,1718248236973,-355.0,0.000281,2]
[329327994,1718248236999,-1000.0,0.000281,2]
[329327996,1718248237014,-619.73589675,0.000281,2]
[329327997,1718248237034,-150.0,0.00028118,2]
[329327998,1718248237065,-1126.52517548,0.00028132,2]
[329327999,1718248237195,-775.2877298,0.00028132,2]
[329328000,1718248237216,-2476.11754758,0.00028132,2]
[329328001,1718248237233,-150.24200793,0.00028146,2]
[329328002,1718248237256,-162.462612,0.00028202,2]
[329328003,1718248237266,-563.593583,0.00028202,2]
[329328004,1718248237284,-1788.133048,0.00028202,2]
[329328005,1718248237302,-649.85045,0.00028202,2]
[329328006,1718248237318,-845.390375,0.00028202,2]
[329328007,1718248237332,-159.22176026,0.00028251,2]
[329328008,1718248237369,-439.171717,0.000283,2]
[329328009,1718248237382,-150.24200793,0.00028399,2]
[329328010,1718248237394,-4377.93045286,0.00028427,2]
[329328011,1718248237419,-702.4443,0.00028446,2]
[329328012,1718248237440,-157.60158641,0.00028454,2]
[329328013,1718248237473,-1005.92972631,0.00028486,2]
[329328014,1718248237502,-1245.37100391,0.00028498,2]
[329328015,1718248237521,-1376.9929,0.000285,2]
[329328016,1718248237546,-275.20667767,0.000285,2]
[329328017,1718248237628,-333.21814457,0.000285,2]
[329328018,1718248237653,-2005.08235378,0.00028511,2]
[329328019,1718248237675,-162.462612,0.00028546,2]
[329328020,1718248237688,-563.593583,0.00028546,2]
[329328021,1718248237700,-1788.133048,0.00028546,2]
[329328022,1718248237726,-649.85045,0.00028546,2]
[329328023,1718248237754,-845.390375,0.00028546,2]
[329328024,1718248237778,-155.4377933,0.00028594,2]
[329328025,1718248237801,-2533.2207,0.000286,2]
[329328026,1718248237818,-245000.0,0.000286,2]
[329328027,1718248237829,-1000.0,0.000286,2]
[329328028,1718248237851,-326.68,0.00028642,2]
[329328029,1718248237864,-157.60158641,0.00028675,2]
[329328030,1718248237896,-171.92504053,0.0002868,2]
[329328031,1718248237943,-150.0,0.0002869,2]
[329328032,1718248237985,-215.42781806,0.0002869,2]
[329328033,1718248237999,-413.35149323,0.00028695,2]
[329328034,1718248238020,-1152.3051,0.000287,2]
[329328035,1718248238031,-500.0,0.000287,2]
[329328036,1718248238048,-170.80899826,0.000287,2]
[329328037,1718248238058,-39354.0149,0.000287,2]
[329328038,1718248238085,-100000.0,0.000287,2]
[329328039,1718248238111,-3259.65563464,0.000287,2]
[329328040,1718248238162,-176.77024666,0.000287,2]
[329328041,1718248238175,-7500.0,0.000287,2]
[329328042,1718248238202,-275.20667763,0.000287,2]
[329328043,1718248238248,-152.43950843,0.000287,2]
[329328044,1718248238261,-215.0,0.000287,2]
[329328045,1718248238277,-150.24200793,0.00028702,2]
[329328046,1718248238289,-150.0,0.0002871,2]
[329328047,1718248238306,-312.8,0.00028712,3]
[329328048,1718248238346,-200.0,0.00028718,2]
[329328049,1718248238358,-1000.0,0.00028718,30]
[329328050,1718248238376,-500.0,0.00028718,2]
[329328051,1718248238408,-200.0,0.00028718,2]
[329328052,1718248238419,-383.19273597,0.0002872,2]
[329328053,1718248238436,-4377.93045286,0.00028721,2]
[329328054,1718248238475,-150.0,0.00028722,2]
[329328055,1718248238486,-171.92504053,0.00028741,2]
[329328056,1718248238501,-156.27003943,0.00028744,2]
[329328057,1718248238516,-150.0,0.00028757,2]
[329328058,1718248238528,-150.85,0.0002879,2]
[329328059,1718248238579,-150.85,0.0002879,2]
[329328060,1718248238615,-150.85,0.0002879,2]
[329328061,1718248238681,-150.85,0.0002879,2]
[329328062,1718248238693,-150.85,0.0002879,2]
[329328063,1718248238703,-150.85,0.0002879,2]
[329328064,1718248238715,-150.85,0.0002879,2]
[329328065,1718248238725,-150.85,0.0002879,2]
[329328066,1718248238776,-150.85,0.0002879,2]
[329328067,1718248238789,-800.0,0.00028795,7]
[329328068,1718248238800,-5088.0,0.00028795,4]
[329328069,1718248238811,-409631.26801054,0.000288,2]
[329328072,1718248239226,-1411.93,0.000288,2]
[329328073,1718248239312,-1381.95190557,0.000288,2]
[329328074,1718248239326,-1698.93511428,0.000288,2]
[329328075,1718248239357,-550.49255264,0.000288,2]
[329328076,1718248239452,-447.53187127,0.000288,2]
[329328077,1718248239480,-850.5,0.000288,2]
[329328078,1718248240675,-813.90015,0.00017051,2]
[329328079,1718248240729,-993.56338709,0.00017051,2]
[329328080,1718248240750,-619.73589675,0.000284,2]
[329328081,1718248240769,-343316.90352267,0.000288,2]
[329328082,1718248240823,-268.83990073,0.000288,2]
[329328083,1718248240890,-4209.38284784,0.000288,2]
[329328084,1718248240976,-146.29854102,0.000288,2]
[329328085,1718248240992,-156.8,0.000288,2]
[329328086,1718248241007,-1204.94218696,0.000288,2]
[329328087,1718248241024,-548.42408113,0.000288,2]
[329328088,1718248241059,-180.56101311,0.000288,2]
[329328089,1718248241081,-450.28982436,0.000288,2]
[329328090,1718248241105,-1614.00168842,0.000288,2]